bitfinex-derivatives/quotes_SOLF0:USTF0_20260202
["timestamp","ask_amount","ask_price","bid_price","bid_amount"]
[1770041495896,136.6092,102.58,102.5,75.40425735]
[1770041496290,8.7807,102.6,102.53,75.37419126]
[1770041496691,145.3697,102.6,102.53,75.37419126]
[1770041497797,8.7807,102.6,102.53,75.37419126]
[1770041497995,330.8379,102.62,102.53,75.37419126]
[1770041498596,136.5821,102.6,102.53,75.37419126]
[1770041498797,136.6093,102.58,102.5,82.92892031]
[1770041498993,136.5988,102.59,102.5,75.35592607]
[1770041499293,145.3917,102.58,102.5,75.35592607]
[1770041499498,136.6225,102.57,102.47,82.92892031]
[1770041499797,136.6225,102.57,102.48,75.35592607]
[1770041499994,8.7842,102.56,102.48,84.14602607]
[1770041501193,8.7842,102.56,102.48,75.35592607]
[1770041504399,136.6092,102.58,102.48,84.14622607]
[1770041504897,8.7839,102.56,102.48,75.35592607]
[1770041505598,8.7848,102.55,102.48,75.35592607]
[1770041506103,136.6619,102.54,102.48,75.35592607]
[1770041506302,8.7864,102.53,102.48,75.35592607]
[1770041506698,136.6485,102.55,102.48,75.35592607]
[1770041507096,8.7857,102.54,102.48,75.35592607]
[1770041507300,136.6634,102.54,102.48,75.35592607]
[1770041507699,8.7864,102.53,102.48,75.35592607]
[1770041508003,136.6948,102.52,102.45,75.47050234]
[1770041508204,144.29208195,102.53,102.45,75.47050234]
[1770041508502,136.6754,102.53,102.45,75.47050234]
[1770041508895,144.24788195,102.57,102.46,75.46338125]
[1770041509098,8.7841,102.56,102.46,91.8720632]
[1770041509705,8.7841,102.56,102.48,75.46338125]
[1770041509905,8.7841,102.56,102.48,83.0800632]
[1770041510205,8.7841,102.56,102.48,91.8703632]
[1770041511700,8.7847,102.55,102.48,83.0800632]
[1770041512100,136.6521,102.55,102.48,75.46338125]
[1770041512301,8.7865,102.53,102.48,75.46338125]
[1770041512708,8.7865,102.53,102.45,84.29326236]
[1770041513008,8.7882,102.51,102.45,75.50036236]
[1770041513511,136.678,102.53,102.45,75.50036236]
[1770041513512,8.7869,102.53,102.45,75.50036236]
[1770041513802,8.7869,102.53,102.45,83.11704431]
[1770041514104,8.7869,102.53,102.45,84.29336236]
[1770041514307,136.6521,102.55,102.45,75.50036236]
[1770041514803,8.7864,102.53,102.47,75.52377707]
[1770041515002,136.6779,102.53,102.47,75.52377707]
[1770041515202,136.691,102.52,102.43,75.52377707]
[1770041515510,136.6629,102.54,102.45,75.52377707]
[1770041515701,331.12878195,102.55,102.45,75.52377707]
[1770041515907,136.6752,102.53,102.45,75.52377707]
[1770041516407,136.6654,102.54,102.45,75.52377707]
[1770041517108,145.4514,102.54,102.45,84.31677707]
[1770041517613,8.786,102.54,102.47,75.40826488]
[1770041517802,136.6636,102.54,102.44,75.40826488]
[1770041518008,136.6903,102.52,102.44,75.40826488]
[1770041518207,136.7021,102.51,102.44,75.40826488]
[1770041519006,136.6903,102.52,102.44,75.40826488]
[1770041519206,144.29388195,102.53,102.44,75.40826488]
[1770041519508,8.7882,102.51,102.44,84.20196488]
[1770041520005,136.6636,102.54,102.44,75.40826488]
[1770041520207,144.31888195,102.51,102.44,75.40826488]
[1770041520405,144.31978195,102.51,102.44,75.40826488]
[1770041520710,136.7031,102.51,102.44,75.40826488]
[1770041521008,341.7279,102.55,102.44,75.40826488]
[1770041521009,144.27528195,102.55,102.44,75.40826488]
[1770041521311,136.6893,102.52,102.44,75.40826488]
[1770041521510,136.6926,102.52,102.44,75.40826488]
[1770041521713,136.7018,102.51,102.44,75.40826488]
[1770041521916,8.7889,102.5,102.44,75.40826488]
[1770041522112,136.6632,102.54,102.46,75.62808747]
[1770041522611,144.27028195,102.55,102.46,75.62808747]
[1770041522908,144.26938195,102.55,102.47,75.55614557]
[1770041523107,136.639,102.56,102.47,75.55614557]
[1770041523311,8.785,102.55,102.48,389.26]
[1770041523508,8.785,102.55,102.49,75.55614557]
[1770041526311,145.417,102.57,102.49,75.55614557]
[1770041526511,136.6335,102.57,102.49,75.55614557]
[1770041527111,136.6335,102.57,102.49,464.79614557]
[1770041527306,136.6058,102.59,102.5,75.4992944]
[1770041527909,8.7823,102.58,102.5,83.11597635]
[1770041528308,145.3726,102.6,102.51,8.7878]
[1770041528510,145.3726,102.6,102.52,75.51524674]
[1770041528804,136.592,102.6,102.52,75.51524674]
[1770041529110,8.7812,102.59,102.52,75.51524674]
[1770041529308,8.7812,102.59,102.53,389.22]
[1770041529709,8.7805,102.6,102.53,464.73524674]
[1770041530012,136.569,102.61,102.53,464.73524674]
[1770041530513,8.7812,102.59,102.53,464.73524674]
[1770041531710,136.569,102.61,102.53,473.52144674]
[1770041531907,136.5627,102.62,102.54,75.51826485]
[1770041533309,144.15308195,102.64,102.54,75.51826485]
[1770041534414,8.7788,102.62,102.55,84.31750498]
[1770041534817,8.7794,102.61,102.55,84.31750498]
[1770041535012,8.7794,102.61,102.55,75.53360498]
[1770041535209,136.5567,102.62,102.55,75.53360498]
[1770041535413,8.7794,102.61,102.55,75.53360498]
[1770041536313,8.7793,102.62,102.55,75.53360498]
[1770041536514,8.7593,102.62,102.55,75.53360498]
[1770041536912,136.5573,102.62,102.55,75.53360498]
[1770041537215,136.5364,102.64,102.55,75.53360498]
[1770041537416,273.1294,102.62,102.55,75.53360498]
[1770041537618,273.1294,102.62,102.55,464.61360498]
[1770041538413,8.7803,102.6,102.55,464.61360498]
[1770041539319,8.7803,102.6,102.56,75.55088082]
[1770041539812,8.7803,102.6,102.57,389.06]
[1770041540613,8.7803,102.6,102.57,327.8376]
[1770041540810,8.7812,102.59,102.57,372.4999]
[1770041541008,8.7812,102.59,102.57,327.2054]
[1770041541210,8.7812,102.59,102.57,312.0785]
[1770041541417,8.7812,102.59,102.56,75.55088082]
[1770041542013,8.7812,102.59,102.54,75.60767881]
[1770041542210,8.7822,102.58,102.54,464.64767881]
[1770041542414,136.5699,102.61,102.55,75.61826951]
[1770041542821,136.5627,102.62,102.55,75.61826951]
[1770041543220,8.7811,102.6,102.55,75.61826951]
[1770041543728,8.7811,102.6,102.55,464.63826951]
[1770041543918,8.7812,102.59,102.55,75.61826951]
[1770041544917,136.5523,102.63,102.56,75.59802805]
[1770041545822,8.7784,102.63,102.57,464.61802805]
[1770041546124,136.4983,102.67,102.58,75.59802805]
[1770041546318,136.4983,102.67,102.59,464.69282053]
[1770041546623,136.4842,102.68,102.61,75.67282053]
[1770041547522,144.07728195,102.7,102.61,75.67282053]
[1770041547719,136.4467,102.71,102.63,75.67282053]
[1770041547920,144.05008195,102.72,102.63,84.45042053]
[1770041548613,136.4334,102.72,102.63,75.67282053]
[1770041548823,136.4334,102.72,102.64,464.63789737]
[1770041549322,136.4334,102.72,102.65,75.65789737]
[1770041550122,145.2041,102.72,102.65,75.65789737]
[1770041550322,136.4334,102.72,102.65,75.65789737]
[1770041550518,144.03558195,102.73,102.65,75.65789737]
[1770041550724,8.7698,102.73,102.66,84.43461234]
[1770041550921,143.99548195,102.76,102.66,75.65981234]
[1770041551219,136.3788,102.76,102.67,75.65981234]
[1770041552427,8.7678,102.75,102.68,464.54550085]
[1770041553024,8.7678,102.75,102.69,75.70550085]
[1770041554619,145.1325,102.77,102.69,75.70550085]
[1770041554921,7.61668195,102.78,102.71,75.70234271]
[1770041555127,143.94448195,102.8,102.71,75.70234271]
[1770041555326,8.7647,102.79,102.71,75.70234271]
[1770041555626,136.3134,102.81,102.73,75.70234271]
[1770041555826,136.3037,102.81,102.73,75.70234271]
[1770041556022,7.61668195,102.82,102.73,75.70234271]
[1770041557023,8.7625,102.81,102.73,84.47114271]
[1770041557327,8.7625,102.81,102.74,464.44376667]
[1770041557829,8.7633,102.8,102.75,388.68]
[1770041559624,16.37878195,102.82,102.75,464.35906957]
[1770041560328,8.7624,102.81,102.75,464.27906957]
[1770041560730,16.37828195,102.82,102.75,464.27906957]
[1770041561522,8.7624,102.81,102.75,464.27906957]
[1770041561722,136.2771,102.83,102.76,75.67295458]
[1770041561924,136.2771,102.83,102.76,464.21295458]
[1770041561925,143.89378195,102.83,102.76,464.21295458]
[1770041562123,8.7624,102.81,102.76,388.54]
[1770041562329,143.92448195,102.81,102.75,388.5]
[1770041562627,143.89108195,102.84,102.75,84.44159924]
[1770041563631,143.85588195,102.86,102.77,75.67469924]
[1770041564331,8.7595,102.85,102.78,464.15469924]
[1770041564530,136.234,102.87,102.79,464.24407896]
[1770041564932,143.85388195,102.86,102.79,464.24407896]
[1770041565425,136.2503,102.85,102.79,75.78407896]
[1770041565627,136.2503,102.85,102.76,8.7661]
[1770041565628,143.88178195,102.84,102.76,84.55017896]
[1770041565833,143.88178195,102.84,102.78,195.64]
[1770041566432,165.374,102.87,102.78,195.64]
[1770041566433,136.234,102.87,102.79,75.78407896]
[1770041566632,143.86748195,102.85,102.79,75.78407896]
[1770041568433,8.7599,102.84,102.79,75.78407896]
[1770041570430,8.7606,102.83,102.79,75.78407896]
[1770041571132,16.33356952,102.85,102.79,75.78407896]
[1770041571337,8.7596,102.85,102.79,75.78407896]
[1770041574033,8.7596,102.85,102.8,75.67289956]
[1770041576037,8.7598,102.84,102.8,75.67289956]
[1770041577541,143.81226952,102.86,102.8,75.67289956]
[1770041578138,8.7589,102.85,102.8,75.67289956]
[1770041578338,143.78656952,102.88,102.8,75.67289956]
[1770041579439,8.7583,102.86,102.8,75.67289956]
[1770041579941,136.224,102.87,102.8,75.67289956]
[1770041580142,8.7598,102.84,102.8,75.67289956]
[1770041580843,136.278,102.83,102.78,75.67289956]
[1770041581037,7.57396952,102.82,102.72,136.4114]
[1770041581244,7.57396952,102.82,102.73,388.14]
[1770041581643,8.7632,102.8,102.74,8.7682]
[1770041581942,143.83736952,102.84,102.74,136.395]
[1770041582142,143.83736952,102.84,102.75,388.14]
[1770041583139,143.83736952,102.84,102.76,68.00300793]
[1770041583341,8.7622,102.82,102.76,76.76940793]
[1770041583540,136.2322,102.87,102.77,68.00300793]
[1770041583743,143.81146952,102.86,102.78,68.00300793]
[1770041584439,16.33276952,102.86,102.78,68.00300793]
[1770041585045,8.7592,102.85,102.79,464.93618553]
[1770041585345,8.7592,102.85,102.8,68.03228553]
[1770041586248,8.7598,102.84,102.8,68.03228553]
[1770041588047,8.7598,102.84,102.79,456.17149704]
[1770041590053,8.7591,102.85,102.8,68.03259665]
[1770041590249,136.2166,102.88,102.8,68.03259665]
[1770041590650,8.7581,102.86,102.8,76.79569665]
[1770041596958,272.4657,102.87,102.8,68.03259665]
[1770041597460,8.759,102.85,102.8,68.03259665]
[1770041599665,8.7581,102.86,102.8,76.79569665]
[1770041602669,8.7573,102.87,102.81,455.89121521]
[1770041603371,8.7573,102.87,102.82,67.85121521]
[1770041604175,136.1845,102.9,102.82,76.61251521]
[1770041604377,136.1845,102.9,102.83,67.87017642]
[1770041605364,8.7566,102.88,102.83,67.87017642]
[1770041606472,11.78302249,102.88,102.83,67.87017642]
[1770041606870,8.7566,102.88,102.83,67.87017642]
[1770041607065,3.02642249,102.89,102.83,67.87017642]
[1770041607373,136.1687,102.92,102.83,70.89659891]
[1770041607573,3.02642249,102.9,102.83,70.89659891]
[1770041607774,11.78032249,102.91,102.86,67.87392121]
[1770041608275,136.2022,102.89,102.81,67.87392121]
[1770041608475,3.02642249,102.86,102.81,67.87392121]
[1770041609570,11.78362249,102.87,102.81,76.63612121]
[1770041609774,11.78362249,102.87,102.82,67.89628685]
[1770041610375,8.7572,102.87,102.82,67.89628685]
[1770041611575,8.7563,102.88,102.82,76.65768685]
[1770041611776,8.7563,102.88,102.82,67.89628685]
[1770041612174,8.7572,102.87,102.82,67.89628685]
[1770041612479,136.2122,102.88,102.82,67.89628685]
[1770041613077,8.7571,102.88,102.82,67.89628685]
[1770041613479,8.7575,102.87,102.82,67.89628685]
[1770041617279,8.7581,102.86,102.82,67.89628685]
[1770041617974,7.56765295,102.88,102.82,67.89628685]
[1770041618182,143.75275295,102.9,102.82,67.89628685]
[1770041618575,7.56765295,102.9,102.82,67.89628685]
[1770041618777,8.7555,102.89,102.82,67.89628685]
[1770041618977,8.7555,102.89,102.83,67.92119204]
[1770041619177,8.7555,102.89,102.83,76.68179204]
[1770041619482,8.7564,102.88,102.83,67.92119204]
[1770041619975,8.7572,102.87,102.83,67.92119204]
[1770041620180,136.1858,102.9,102.83,67.92119204]
[1770041620781,8.7564,102.88,102.83,67.92119204]
[1770041623584,136.1858,102.9,102.83,67.92119204]
[1770041625384,8.7564,102.88,102.83,67.92119204]
[1770041626782,8.7564,102.88,102.83,76.68159204]
[1770041627084,8.7555,102.89,102.84,63.53110972]
[1770041627681,343.75245295,102.92,102.84,63.53110972]
[1770041627682,8.7564,102.88,102.84,63.53110972]
[1770041628282,8.7573,102.87,102.84,63.53110972]
[1770041629982,143.75575295,102.9,102.82,63.53588508]
[1770041630184,136.2247,102.87,102.77,159.8865832]
[1770041630389,136.2247,102.87,102.77,136.3552]
[1770041630889,8.7589,102.85,102.78,8.7642]
[1770041631289,8.7589,102.85,102.79,8.7639]
[1770041631686,272.8689,102.72,102.58,136.5956]
[1770041631888,136.4223,102.72,102.6,136.5736]
[1770041632189,145.1942,102.72,102.64,60.34931908]
[1770041632391,136.4357,102.71,102.66,60.26134218]
[1770041632794,139.4714898,102.71,102.66,55.39027852]
[1770041633494,145.2215,102.7,102.66,55.39027852]
[1770041633690,136.4623,102.69,102.63,3.0357898]
[1770041633892,136.4623,102.69,102.62,246.38]
[1770041633893,136.4357,102.71,102.65,3.0357898]
[1770041634090,136.4095,102.73,102.65,3.0357898]
[1770041634288,136.4095,102.73,102.67,3.0357898]
[1770041634489,136.4095,102.73,102.64,392.22677328]
[1770041634997,145.195,102.72,102.65,57.79212289]
[1770041635391,145.1657,102.74,102.65,57.79212289]
[1770041636093,145.1657,102.74,102.66,57.79212289]
[1770041636684,136.3533,102.78,102.68,65.37332957]
[1770041638089,136.3406,102.79,102.7,57.78655629]
[1770041638295,136.3406,102.79,102.72,57.78655629]
[1770041639289,145.105,102.79,102.72,57.78655629]
[1770041639489,8.7644,102.79,102.72,57.78655629]
[1770041639891,143.88657328,102.82,102.72,57.78655629]
[1770041639892,145.0695,102.81,102.72,57.78655629]
[1770041640086,145.0695,102.81,102.73,57.87173407]
[1770041641189,145.0484,102.83,102.74,57.86944132]
[1770041641393,145.0484,102.83,102.75,57.86944132]
[1770041641585,136.2733,102.84,102.75,57.86944132]
[1770041641787,8.7598,102.84,102.77,57.86944132]
[1770041642593,145.0237,102.84,102.77,57.86944132]
[1770041643401,145.0387,102.83,102.77,57.86944132]
[1770041644796,136.2947,102.82,102.77,57.86944132]
[1770041645005,272.6196,102.81,102.74,57.94209447]
[1770041645493,143.88147328,102.82,102.74,57.94209447]
[1770041645702,136.2777,102.83,102.75,57.94209447]
[1770041646196,8.762,102.82,102.75,57.94209447]
[1770041646390,343.7204,102.85,102.75,57.94209447]
[1770041646391,136.2646,102.84,102.75,57.94209447]
[1770041646592,8.7608,102.83,102.75,57.94209447]
[1770041647503,8.7617,102.82,102.75,57.94209447]
[1770041647899,136.3357,102.79,102.72,57.96650436]
[1770041649303,8.765,102.78,102.72,57.96650436]
[1770041652400,8.765,102.78,102.73,57.97176612]
[1770041652606,8.3910778,102.78,102.73,57.97176612]
[1770041653610,8.7659,102.77,102.73,57.97176612]
[1770041654611,8.7659,102.77,102.73,446.17176612]
[1770041655504,136.3478,102.78,102.73,41.10276612]
[1770041655805,8.7675,102.75,102.73,6.612e-05]
[1770041656104,136.3563,102.77,102.66,408.59754666]
[1770041656308,136.3478,102.78,102.69,388.2]
[1770041656704,136.3598,102.77,102.69,388.2]
[1770041657506,136.3478,102.78,102.69,388.2]
[1770041657814,143.90877328,102.8,102.71,24.57848989]
[1770041657815,8.7664,102.77,102.71,24.57848989]
[1770041658111,136.33,102.79,102.71,24.57848989]
[1770041659214,8.765,102.78,102.72,24.60535436]
[1770041661515,136.2999,102.82,102.74,20.23723182]
[1770041661718,136.2999,102.82,102.75,20.23722078]
[1770041661913,136.2696,102.84,102.75,20.23722078]
[1770041662115,136.2599,102.85,102.77,20.23722078]
[1770041663417,8.7606,102.83,102.77,20.23722078]
[1770041664717,8.7597,102.85,102.78,20.04728797]
[1770041664915,136.2479,102.86,102.78,20.04728797]
[1770041666423,8.7601,102.84,102.78,20.04728797]
[1770041666926,8.7607,102.83,102.79,408.21988574]
[1770041668420,8.7597,102.84,102.79,408.21988574]
[1770041669325,8.7597,102.84,102.8,20.01831349]
[1770041669823,136.1954,102.9,102.81,20.01831349]
[1770041670028,2.49681566,102.89,102.81,20.01831349]
[1770041670222,136.197,102.89,102.81,20.01831349]
[1770041671227,8.7573,102.87,102.82,19.9912899]
[1770041673524,8.7568,102.88,102.82,19.9912899]
[1770041674628,8.7573,102.87,102.82,19.9912899]
[1770041674828,136.1954,102.9,102.82,19.9912899]
[1770041675130,2.49738041,102.89,102.82,19.9912899]
[1770041675324,136.1954,102.9,102.82,19.9912899]
[1770041675628,2.49672636,102.89,102.82,19.9912899]
[1770041675829,136.1954,102.9,102.82,19.9912899]
[1770041676027,2.49676753,102.89,102.82,19.9912899]
[1770041676331,8.7564,102.88,102.82,19.9912899]
[1770041677327,143.76717328,102.91,102.83,20.09901571]
[1770041677531,2.49671994,102.9,102.83,20.09901571]
[1770041677730,2.49671994,102.89,102.83,20.09901571]
[1770041677930,143.76717328,102.91,102.82,8.7613]
[1770041678131,2.49669117,102.9,102.82,8.7613]
[1770041678428,11.25229117,102.89,102.82,8.7613]
[1770041678728,143.76717328,102.91,102.82,8.7613]
[1770041678930,8.7564,102.88,102.81,388.04]
[1770041679131,136.1849,102.9,102.81,388.04]
[1770041679428,2.4979404,102.89,102.81,388.04]
[1770041679632,8.7572,102.87,102.81,388.04]
[1770041679832,8.7572,102.87,102.81,396.802]
[1770041683631,136.1686,102.92,102.81,531.92637328]
[1770041683837,138.67295138,102.91,102.81,395.62677328]
[1770041684135,2.50155138,102.9,102.81,395.62677328]
[1770041684331,136.213,102.88,102.81,387.96]
[1770041684536,2.50155138,102.87,102.8,387.96]
[1770041684737,136.2375,102.86,102.76,143.94567328]
[1770041685033,136.2243,102.87,102.79,387.96]
[1770041685334,2.43820029,102.86,102.79,387.96]
[1770041685534,2.4968024,102.85,102.79,387.96]
[1770041685728,136.2243,102.87,102.79,387.96]
[1770041685932,2.4968024,102.86,102.79,387.96]
[1770041686135,2.4968024,102.85,102.79,387.96]
[1770041686338,8.7589,102.85,102.79,387.96]
[1770041687036,8.7581,102.86,102.79,387.96]
[1770041688333,8.7581,102.86,102.8,8.7628]
[1770041688940,8.759,102.85,102.79,387.96]
[1770041690434,8.759,102.85,102.79,396.7239]
[1770041690745,8.7582,102.86,102.79,396.7239]
[1770041691241,8.7571,102.88,102.79,395.52766228]
[1770041691444,2.49942482,102.87,102.79,395.52766228]
[1770041691643,136.1979,102.89,102.79,395.52766228]
[1770041691942,2.49971366,102.88,102.79,395.52766228]
[1770041692137,2.49971366,102.87,102.79,395.52766228]
[1770041692340,8.7573,102.87,102.81,8.7623]
[1770041692540,143.74936228,102.91,102.8,136.3156]
[1770041692740,2.49998851,102.9,102.8,136.3156]
[1770041692941,11.25618851,102.89,102.8,136.3156]
[1770041693141,8.7562,102.89,102.81,387.96]
[1770041693945,8.7562,102.89,102.82,8.7613]
[1770041695548,2.50145905,102.88,102.81,396.7222]
[1770041695846,136.1871,102.9,102.81,396.7222]
[1770041696045,2.50120926,102.89,102.81,396.7222]
[1770041696239,8.7574,102.87,102.81,8.7622]
[1770041696442,136.2128,102.88,102.8,256.38]
[1770041696642,2.50118502,102.87,102.8,256.38]
[1770041696843,2.50118502,102.86,102.8,256.38]
[1770041697044,136.2128,102.88,102.8,256.38]
[1770041697243,8.7588,102.86,102.8,256.38]
[1770041697547,2.50067282,102.85,102.78,387.94]
[1770041697747,143.79236228,102.87,102.78,387.94]
[1770041697947,2.47764132,102.86,102.78,387.94]
[1770041698252,8.7599,102.84,102.77,8.7656]
[1770041698446,8.7599,102.84,102.76,524.3078]
[1770041699042,8.7599,102.84,102.76,136.3678]
[1770041699242,8.7589,102.85,102.78,8.7647]
[1770041699547,8.7589,102.85,102.77,387.94]
[1770041699949,136.2128,102.88,102.79,8.7639]
[1770041700145,2.47973347,102.87,102.79,8.7639]
[1770041700341,2.48069436,102.86,102.79,8.7639]
[1770041700649,8.7582,102.86,102.8,8.7631]
[1770041702249,8.7582,102.86,102.79,8.764]
[1770041702440,11.7854759,102.86,102.79,11.7912759]
[1770041702646,8.7582,102.86,102.79,3.0272759]
[1770041702841,8.7582,102.86,102.79,8.7639]
[1770041703045,8.7582,102.86,102.79,11.7911759]
[1770041703448,2.48596185,102.85,102.79,11.7911759]
[1770041703644,8.7582,102.86,102.8,3.0272759]
[1770041703847,2.48576898,102.85,102.8,3.0272759]
[1770041704153,8.7582,102.86,102.8,3.0272759]
[1770041704456,2.48552714,102.85,102.79,8.7639]
[1770041704754,8.7582,102.86,102.79,8.7639]
[1770041704954,2.48707181,102.85,102.79,8.7639]
[1770041705250,2.48667941,102.84,102.78,8.7647]
[1770041705452,2.48667941,102.84,102.72,555.3605]
[1770041705453,2.48552157,102.83,102.64,8.86995674]
[1770041705650,11.62639308,102.9,102.55,41.73637155]
[1770041705651,136.4503,102.7,102.58,200.7705]
[1770041705955,144.05892525,102.67,102.55,400.83684377]
[1770041706250,136.4922,102.67,102.55,400.84544377]
[1770041706454,144.07072525,102.66,102.56,387.96]
[1770041706658,152.86002525,102.65,102.56,387.96]
[1770041707154,7.56812525,102.68,102.58,136.6065]
[1770041707545,152.79832525,102.7,102.59,136.5939]
[1770041707747,152.79832525,102.7,102.59,145.3749]
[1770041708050,136.4465,102.71,102.6,136.5768]
[1770041708250,224.83812525,102.72,102.61,533.363]
[1770041708458,7.56812525,102.74,102.64,136.5264]
[1770041708854,136.411,102.73,102.62,532.22272525]
[1770041709157,136.411,102.73,102.62,524.6546]
[1770041709552,7.56812525,102.72,102.62,524.6546]
[1770041710054,152.73272525,102.74,102.63,136.5402]
[1770041710250,136.4123,102.73,102.62,524.6546]
[1770041710454,152.73272525,102.74,102.63,136.5371]
[1770041711554,143.99272525,102.72,102.62,396.8785]
[1770041711755,7.56812525,102.72,102.63,136.5397]
[1770041712553,7.56812525,102.72,102.62,533.4294]
[1770041713451,7.56812525,102.72,102.62,396.8785]
[1770041713860,7.56812525,102.72,102.62,533.4273]
[1770041714359,7.56812525,102.72,102.63,388.28]
[1770041715760,7.56812525,102.72,102.63,533.5924]
[1770041717158,7.56812525,102.72,102.64,145.3033]
[1770041717356,7.56812525,102.74,102.66,136.5008]
[1770041717657,7.56812525,102.76,102.67,145.2609]
[1770041717864,7.56812525,102.76,102.67,533.6409]
[1770041718060,7.56812525,102.76,102.67,397.1537]
[1770041718261,7.56812525,102.76,102.67,533.6417]
[1770041718663,7.56812525,102.76,102.67,397.1537]
[1770041719562,152.70472525,102.76,102.67,397.1537]
[1770041720364,7.56812525,102.74,102.67,388.38]
[1770041720561,7.56812525,102.72,102.61,144.12492525]
[1770041720759,7.56812525,102.72,102.63,524.9403]
[1770041721063,7.56812525,102.72,102.63,533.7176]
[1770041721659,7.56812525,102.72,102.64,8.7764]
[1770041721859,16.33842525,102.72,102.63,388.4]
[1770041722058,136.3454,102.78,102.68,136.4714]
[1770041722267,7.56812525,102.76,102.68,524.887]
[1770041722465,136.3441,102.78,102.68,524.887]
[1770041722666,7.56812525,102.77,102.69,8.772]
[1770041722861,136.3703,102.76,102.68,388.42]
[1770041723267,143.95732525,102.75,102.67,388.42]
[1770041723473,8.7688,102.74,102.67,388.42]
[1770041723662,7.56812525,102.75,102.67,388.42]
[1770041723969,16.33572525,102.75,102.67,388.42]
[1770041724163,152.71872525,102.75,102.67,388.42]
[1770041724364,16.33572525,102.75,102.67,388.42]
[1770041724667,8.7676,102.75,102.67,388.44]
[1770041724866,7.56812525,102.76,102.67,388.44]
[1770041725067,143.93792525,102.76,102.67,388.44]
[1770041725369,152.62072525,102.82,102.7,8.7716]
[1770041725863,16.32992525,102.82,102.7,152.78732525]
[1770041726466,8.7618,102.82,102.72,7.56812525]
[1770041726662,152.59282525,102.84,102.73,388.44]
[1770041727067,8.7602,102.84,102.74,7.56812525]
[1770041727467,145.0256,102.84,102.74,7.56812525]
[1770041727667,145.0256,102.84,102.75,388.42]
[1770041727969,8.7602,102.84,102.75,388.42]
[1770041728266,145.024,102.84,102.75,388.42]
[1770041730073,8.761,102.83,102.75,388.42]
[1770041730267,145.0375,102.83,102.75,388.42]
[1770041730469,165.4112,102.9,102.78,136.33]
[1770041730666,136.1988,102.89,102.77,280.26282525]
[1770041730974,136.1988,102.89,102.75,388.42]
[1770041730975,136.2388,102.86,102.75,532.36742525]
[1770041731364,136.2388,102.86,102.75,143.94742525]
[1770041731572,143.80692525,102.86,102.76,388.32]
[1770041731977,143.80692525,102.86,102.77,388.32]
[1770041732275,143.77862525,102.88,102.77,524.6725]
[1770041732574,136.1988,102.89,102.78,524.6202]
[1770041732973,136.1988,102.89,102.79,136.3282]
[1770041732974,8.7559,102.89,102.79,136.3282]
[1770041734375,8.7559,102.89,102.8,8.7625]
[1770041735671,16.32402525,102.89,102.8,8.7625]
[1770041736972,8.7565,102.88,102.8,8.7625]
[1770041737669,136.2434,102.86,102.75,143.94852525]
[1770041737873,143.79432525,102.87,102.76,524.5277]
[1770041738572,136.1492,102.93,102.82,136.2896]
[1770041738784,7.56812525,102.91,102.83,388.14]
[1770041738971,7.56812525,102.89,102.82,388.14]
[1770041739778,7.56812525,102.89,102.79,136.3258]
[1770041740076,7.56812525,102.89,102.8,388.12]
[1770041740271,16.32402525,102.89,102.8,396.8825]
[1770041740673,7.56812525,102.87,102.8,388.12]
[1770041741074,8.7581,102.86,102.79,388.1]
[1770041741771,8.757,102.88,102.79,396.8638]
[1770041741970,8.757,102.88,102.79,524.4282]
[1770041742773,8.757,102.88,102.8,8.763]
[1770041743171,136.1249,102.95,102.84,136.2582]
[1770041743369,143.69952525,102.94,102.85,388.08]
[1770041743570,7.56812525,102.92,102.85,388.08]
[1770041744072,16.32122525,102.92,102.85,388.08]
[1770041744683,16.32122525,102.92,102.84,388.04]
[1770041746076,143.69952525,102.94,102.84,396.7995]
[1770041746577,8.753,102.92,102.84,396.7995]
[1770041748879,8.7539,102.91,102.84,388.04]
[1770041751084,8.7547,102.9,102.84,388.04]
[1770041751281,8.7547,102.9,102.83,387.94]
[1770041751885,8.7547,102.9,102.82,387.92]
[1770041752079,8.7555,102.89,102.82,387.92]
[1770041752882,8.7555,102.89,102.83,20.265506]